[Event "CCT Julius Baer-D3 2024"]
[Site "Online"]
[Date "2024.09.27"]
[Round "1.4"]
[White "Ponkratov, Pavel"]
[Black "Korobov, Anton"]
[Result "1/2-1/2"]
[ECO "E07"]
[WhiteElo "2564"]
[BlackElo "2650"]
[Annotator "TA"]
[PlyCount "89"]
[EventDate "2024.09.25"]
[EventType "swiss"]
[EventCountry "NET"]
[SourceTitle "playchess.com"]
[Source "ChessBase"]
[SourceQuality "1"]
[TimeControl "600+2"]

{[%evp 20,89,14,19,32,18,77,59,78,75,120,124,119,99,82,97,79,91,89,93,85,99,91,68,72,65,106,104,113,94,88,89,92,108,97,79,76,48,41,42,44,0,0,-10,-1,-8,-34,-14,-20,-32,-40,-92,-86,-154,-153,-151,-116,-106,-116,-102,-75,-172,-161,-156,-150,-248,-197,-420,-420,-808,-785,-743]} 1. Nf3 {[%emt 0:00:03]} d5 {[%emt 0:00:06]} 2. c4 {[%emt 0:00:02]} e6 {[%emt 0:00:03]} 3. g3 {[%emt 0:00:02]} Nf6 {[%emt 0:00:05]} 4. Bg2 {[%emt 0:00:01]} Be7 {[%emt 0:00:01]} 5. O-O {[%emt 0:00:02]} O-O {[%emt 0:00:01]} 6. d4 {[%emt 0:00:03]} c6 {[%emt 0:00:08]} 7. Qd3 {[%emt 0:00:04]} b6 {[%emt 0:00:01]} 8. Nc3 {[%emt 0:00:03]} Ba6 {[%emt 0:00:01]} 9. b3 {[%emt 0:00:02]} Nbd7 {[%emt 0:00:01]} 10. e4 {[%emt 0:00:03]} dxc4 {[%emt 0:00:10] E07: Closed Catalan: Main Line (5 Nf3 0-0 6 0-0 Nbd7).} 11. bxc4 {[%emt 0:00:02]} e5 {[%emt 0:00:00]} 12. Ne2 {[%emt 0:00:01]} (12. Nxe5 $2 Nxe5 13. Qd1 Nxc4 $19) 12... Rc8 $146 {[%emt 0:00:58]} (12... Qc7 $11) ({Predecessor:} 12... Bd6 13. Qc2 Re8 14. Bb2 Qc7 15. Rfe1 Rad8 16. Rad1 Bb4 17. Rf1 exd4 18. Nexd4 Nxe4 {0-1 Meier,G (2591)-Kuzubov,Y (2606) CrunchLab Masters Div 3 L rapid 2024 (2.1)}) 13. Qc2 {[%emt 0:00:18]} Qc7 {[%emt 0:00:18]} 14. Bb2 {[%emt 0:00:05]} exd4 {[%emt 0:00:28]} 15. Nexd4 {[%emt 0:00:04]} Rfe8 {[%emt 0:00:24]} 16. Nf5 {[%emt 0:02:37]} Bf8 {[%emt 0:00:06]} 17. e5 {[%emt 0:00:06]} Nxe5 {[%emt 0:00:05]} (17... Ng4 $2 18. Ng5 g6 19. Nd6 (19. e6 f6 $16) 19... Ngxe5 (19... Bxd6 $2 20. exd6 Qd8 21. Nxf7 $18) 20. Nxe8 (20. Nxc8 Nxc4 21. Rfe1 Qxc8 $16) 20... Rxe8 21. Rfe1 $18) 18. Nxe5 {[%emt 0:00:03]} Rxe5 {[%emt 0:00:00]} 19. Bxe5 {[%emt 0:00:01]} Qxe5 {[%emt 0:00:01]} 20. Rfe1 {[%emt 0:00:27]} Qc5 {[%emt 0:00:09]} 21. Rac1 {[%emt 0:00:28]} g6 {[%emt 0:00:31] [#]} 22. Ne3 $1 {[%emt 0:00:01]} Bb7 {[%emt 0:01:01]} 23. Rcd1 {[%emt 0:00:09]} Re8 {[%emt 0:00:16]} 24. Qa4 {[%emt 0:00:14]} a5 {[%emt 0:00:09]} 25. Qb3 {[%emt 0:00:03]} Bc8 {[%emt 0:00:51]} 26. Rb1 {[%emt 0:00:07]} Nd7 {[%emt 0:00:02]} 27. Red1 {[%emt 0:00:07]} Bh6 {[%emt 0:00:36]} 28. Ng4 {[%emt 0:00:28]} Bg7 {[%emt 0:00:05]} 29. Re1 {[%emt 0:00:31]} Rf8 {[%emt 0:00:07]} 30. h4 {[%emt 0:00:49]} h5 {[%emt 0:00:11]} 31. Nh2 {[%emt 0:00:02]} (31. Ne3 $5) 31... Bd4 {[%emt 0:00:16]} 32. Re2 {[%emt 0:00:43]} Ne5 {[%emt 0:00:20]} 33. Nf3 {[%emt 0:00:03]} Nxf3+ {[%emt 0:00:05]} 34. Bxf3 {[%emt 0:00:01]} Be6 {[%emt 0:00:01]} 35. Rc1 {[%emt 0:00:55]} ({White should try} 35. Qd1 $15) 35... b5 $17 {[%emt 0:00:06]} 36. Rd2 {[%emt 0:00:08]} (36. Qc2 $142 Bxc4 (36... Qxc4 37. Qd1 $14) (36... bxc4 37. Rxe6 fxe6 38. Qxg6+ Kh8 39. Qh6+ Kg8 40. Qxe6+ Kg7 41. Rxc4 $16) 37. Rd2) 36... bxc4 $17 {[%emt 0:00:36]} ({Don't play} 36... Bxc4 37. Bxc6 Bxb3 (37... Qxc6 38. Rxd4 Bxb3 39. Rxc6 $15) 38. Rxc5 Bxc5 39. axb3 $15) 37. Qd1 {[%emt 0:00:13]} Be5 {[%emt 0:00:02]} 38. Kg2 {[%emt 0:00:05]} c3 {[%emt 0:00:01]} 39. Re2 {[%emt 0:00:01]} Bf6 {[%emt 0:00:29]} 40. Qa4 {[%emt 0:00:04]} (40. Rxe6 $17 {keeps fighting.} fxe6 41. Qd7) 40... Bd5 {[%emt 0:00:16]} 41. Qf4 {[%emt 0:00:03] [#]} Kg7 $1 {[%emt 0:00:02]} 42. Rb1 {[%emt 0:00:14]} (42. Rd1 $17) 42... Rd8 {[%emt 0:00:17]} ({And not} 42... c2 43. Rc1 $16) 43. Bxd5 $2 {[%emt 0:00:06]} (43. Rc2) 43... cxd5 $19 {[%emt 0:00:23]} ({Not} 43... Qxd5+ 44. Qe4 $11) 44. Rb7 {[%emt 0:00:03]} (44. Rd1 $142) 44... d4 $19 {[%emt 0:00:04]} 45. Rc7 {[%emt 0:01:06]} 1/2-1/2

[Event "CCT Julius Baer-D3 2024"]
[Site "Online"]
[Date "2024.09.27"]
[Round "1.4"]
[White "Bharath Subramaniyam H"]
[Black "Guseinov, Gadir"]
[Result "1-0"]
[ECO "B38"]
[WhiteElo "2561"]
[BlackElo "2636"]
[Annotator "TA"]
[PlyCount "131"]
[EventDate "2024.09.25"]
[EventType "swiss"]
[EventCountry "NET"]
[SourceTitle "playchess.com"]
[Source "ChessBase"]
[SourceQuality "1"]
[TimeControl "600+2"]

{[%evp 47,131,-52,0,0,0,0,0,0,9,0,0,0,0,0,0,0,0,0,0,0,0,0,0,0,0,0,0,0,0,0,0,0,4,0,0,0,0,0,0,0,0,0,8,3,65,19,19,26,147,149,149,145,144,144,142,142,157,17,24,12,143,0,43,20,20,37,127,129,214,216,227,220,263,273,300,310,339,341,385,368,387,383,385,374,499,367]} 1. e4 {[%emt 0:00:03]} c5 {[%emt 0:00:03]} 2. Nf3 {[%emt 0:00:02]} Nc6 {[%emt 0:00:01]} 3. d4 {[%emt 0:00:02]} cxd4 {[%emt 0:00:00]} 4. Nxd4 {[%emt 0:00:01]} g6 {[%emt 0:00:00]} 5. c4 {[%emt 0:00:02]} Bg7 {[%emt 0:00:01]} 6. Be3 {[%emt 0:00:00]} Nf6 {[%emt 0:00:01]} 7. Nc3 {[%emt 0:00:02]} O-O {[%emt 0:00:02]} 8. Be2 {[%emt 0:00:07]} b6 {[%emt 0:00:01]} 9. O-O {[%emt 0:00:33]} Bb7 {[%emt 0:00:01]} 10. f3 {[%emt 0:00:00]} e6 {[%emt 0:00:01]} 11. Ndb5 {[%emt 0:00:13]} d5 {[%emt 0:00:01] B38: Sicilian: Maroczy Bind with 5...Bg7 and 7...0-0.} 12. cxd5 {[%emt 0:00:18]} exd5 {[%emt 0:00:01]} 13. exd5 {[%emt 0:00:10]} Nb4 {[%emt 0:00:01]} 14. d6 {[%emt 0:00:07]} Nfd5 {[%emt 0:00:01]} 15. Nxd5 {[%emt 0:01:15]} Nxd5 {[%emt 0:00:03]} 16. Bd4 {[%emt 0:00:01]} Qg5 {[%emt 0:00:01]} 17. Rf2 {[%emt 0:01:51]} Bxd4 {[%emt 0:06:18]} 18. Qxd4 {[%emt 0:00:13]} Nf4 {[%emt 0:00:03]} 19. Nc7 {[%emt 0:00:01]} Rac8 {[%emt 0:00:20]} 20. Kh1 {[%emt 0:00:31]} Rfd8 {[%emt 0:00:03]} 21. Qb4 {[%emt 0:00:25]} Qe5 {[%emt 0:00:22]} 22. Bf1 {[%emt 0:00:05]} Rxd6 $146 {[%emt 0:01:11]} ({Predecessor:} 22... Qxd6 23. Qxd6 Rxd6 24. Nb5 Rdc6 25. Nc3 a6 26. g3 Ne6 27. Rd1 b5 28. Kg2 Kf8 29. a3 R6c7 30. Rfd2 h6 31. Be2 {½-½ Rodriguez Redondo,A (1945)-Moreno Estebanez,P (2151) ESP-ch U18 Salobrena 2019 (7)}) 23. Nb5 {[%emt 0:00:13]} Re6 {[%emt 0:00:48]} 24. Rd1 {[%emt 0:00:16]} a5 {[%emt 0:00:16]} (24... Nd5 $15 25. Qd4 Qg5 26. Nxa7 Rce8) 25. Qd4 $11 {[%emt 0:00:52]} Qxd4 {[%emt 0:00:12]} 26. Nxd4 {[%emt 0:00:34]} Rd6 {[%emt 0:00:12]} 27. Rfd2 {[%emt 0:00:01]} a4 {[%emt 0:00:00]} 28. Nc2 {[%emt 0:00:55]} Rxd2 {[%emt 0:00:22]} 29. Rxd2 {[%emt 0:00:00]} Bd5 {[%emt 0:00:04]} 30. a3 {[%emt 0:00:40]} Bb3 {[%emt 0:00:04]} 31. Ne3 {[%emt 0:00:02]} Re8 {[%emt 0:00:08]} 32. Nc2 {[%emt 0:00:04]} Nd5 {[%emt 0:00:15]} 33. Kg1 {[%emt 0:00:12]} Bxc2 {[%emt 0:00:07]} 34. Rxd5 {[%emt 0:00:18]} Re1 {[%emt 0:00:00]} 35. Rd2 {[%emt 0:00:01]} Bb3 {[%emt 0:00:02]} 36. Kf2 {[%emt 0:00:01]} Rc1 {[%emt 0:00:03]} 37. Bb5 {[%emt 0:00:05]} Rc5 {[%emt 0:00:02]} 38. Be2 {[%emt 0:00:02]} Kg7 {[%emt 0:00:01]} 39. Ke3 {[%emt 0:00:03]} h5 {[%emt 0:00:03]} 40. Rd4 {[%emt 0:00:23]} Rc2 {[%emt 0:00:02]} 41. Rd2 {[%emt 0:00:00]} Rc1 {[%emt 0:00:01]} 42. Rd6 {[%emt 0:00:11]} Rb1 {[%emt 0:00:03]} 43. Rd2 $1 {[%emt 0:00:05]} h4 {[%emt 0:00:00]} 44. Bb5 {[%emt 0:00:06]} f6 {[%emt 0:00:04]} 45. g3 {[%emt 0:00:09]} h3 {[%emt 0:00:01]} (45... hxg3 $11 46. hxg3 Kf7) 46. g4 {[%emt 0:00:01]} (46. Bd3 $14 Rg1 47. Bb5) 46... Kh6 {[%emt 0:00:03]} 47. Kf2 {[%emt 0:00:01]} f5 {[%emt 0:00:05] [#]} (47... Kg5 $11) 48. gxf5 $1 $16 {[%emt 0:00:01]} gxf5 {[%emt 0:00:00]} 49. Kg3 {[%emt 0:00:02]} Kg5 {[%emt 0:00:01]} 50. f4+ {[%emt 0:00:01]} ({But not} 50. Kxh3 $6 Kf4 $11) 50... Kf6 {[%emt 0:00:00]} 51. Kxh3 {[%emt 0:00:00]} Rg1 {[%emt 0:00:03]} 52. Rg2 {[%emt 0:00:02]} (52. Rd6+ Ke7 53. Rd4 (53. Rxb6 Rg4 $14) 53... Bc2 54. Bxa4 Be4) (52. Rd4 $16) 52... Re1 $11 {[%emt 0:00:03]} 53. Re2 {[%emt 0:00:05]} Rg1 {[%emt 0:00:00]} (53... Rd1 $11 {remains equal.}) 54. Rg2 {[%emt 0:00:01]} ({Only move:} 54. Rd2 $16) 54... Rd1 {[%emt 0:00:01]} 55. Kg3 {[%emt 0:00:02]} Bd5 {[%emt 0:00:03]} 56. Re2 {[%emt 0:00:04]} Rg1+ {[%emt 0:00:01]} (56... Bb7 $14) 57. Kf2 $16 {[%emt 0:00:01]} Rb1 {[%emt 0:00:06]} (57... Rd1 $16 {was called for.}) 58. Bxa4 $18 {[%emt 0:00:02]} Rh1 {[%emt 0:00:03]} 59. Ke3 {[%emt 0:00:02]} Be6 {[%emt 0:00:02]} 60. Bc6 {[%emt 0:00:04]} Rc1 {[%emt 0:00:02]} 61. Bf3 {[%emt 0:00:01]} Bc4 {[%emt 0:00:02]} 62. Rd2 {[%emt 0:00:01]} Ke7 {[%emt 0:00:01]} 63. h4 {[%emt 0:00:02]} Rg1 {[%emt 0:00:02]} 64. Kf2 {[%emt 0:00:02]} Rg8 {[%emt 0:00:02]} 65. Rd4 {[%emt 0:00:01]} Be6 {[%emt 0:00:01]} 66. Rb4 {[%emt 0:00:01]} 1-0

[Event "CCT Julius Baer-D3 2024"]
[Site "Online"]
[Date "2024.09.27"]
[Round "1.5"]
[White "Duda, Jan-Krzysztof"]
[Black "Alekseenko, Kirill"]
[Result "1/2-1/2"]
[ECO "C28"]
[WhiteElo "2732"]
[BlackElo "2679"]
[Annotator "TA"]
[PlyCount "72"]
[EventDate "2024.09.25"]
[EventType "swiss"]
[EventCountry "NET"]
[SourceTitle "playchess.com"]
[Source "ChessBase"]
[SourceQuality "1"]
[TimeControl "600+2"]

{[%evp 12,72,7,0,0,0,10,-109,-113,-102,-112,-118,-117,-209,-75,-189,-202,-215,-200,-225,-199,-280,-290,-308,-310,-301,-306,-319,-295,-287,-309,-346,-161,-537,-527,-509,-503,-797,-782,-1064,-768,-1903,-1699,-1731,-1657,-5669,-5627,-29983,-29984,-29984,-29985,-29985,-29986,-29986,-29987,-29987,-29974,-6291,0,-29987,0,-6303,0]} 1. e4 {[%emt 0:00:08]} e5 {[%emt 0:01:36]} 2. Nc3 {[%emt 0:00:04]} Nf6 {[%emt 0:00:07][%cal Bg8f6,Bf6d5,Bd5c3][%mdl 32]} 3. Bc4 {[%emt 0:00:03]} Nc6 {[%emt 0:00:27]} 4. d3 {[%emt 0:00:07]} Bb4 {[%emt 0:00:04]} 5. Nf3 {[%emt 0:00:14]} d5 {[%emt 0:00:33]} 6. exd5 {[%emt 0:00:08]} Nxd5 {[%emt 0:00:04]} 7. O-O {[%emt 0:00:18]} Bxc3 {[%emt 0:00:32]} 8. bxc3 {[%emt 0:00:05][%cal Of3e5]} Bg4 {[%emt 0:00:04]} 9. Ba3 {[%emt 0:01:41]} (9. Re1 $11 O-O 10. Bd2) 9... Nxc3 $17 {[%emt 0:00:34] Black is better.} 10. Qe1 {[%emt 0:00:33][%csl LRc3,LRe5]} Bxf3 {[%emt 0:00:09]} 11. gxf3 {[%emt 0:00:23] [#]} (11. Qxc3 $2 Qg5 12. g3 Nd4 13. Bxf7+ Kxf7 $19) 11... Nd5 {[%emt 0:00:26] A dynamic duo of knights.} 12. Rb1 {[%emt 0:00:14]} (12. Bb5 $17 {might work better.} Qg5+ 13. Kh1) 12... Qg5+ $19 {[%emt 0:00:26]} 13. Kh1 {[%emt 0:00:03]} O-O-O $40 {[%emt 0:00:06][%mdl 128] Black wants a kill.} 14. Rg1 {[%emt 0:00:33]} Qh5 {[%emt 0:00:05]} 15. Rg3 {[%emt 0:00:03]} f5 {[%emt 0:00:36]} 16. Rb5 {[%emt 0:00:36]} (16. Qf1 {keeps fighting.}) 16... f4 {[%emt 0:00:34]} 17. Rg4 {[%emt 0:01:05] [#]} Nd4 $1 {[%emt 0:00:03]} 18. Qe4 {[%emt 0:00:04][%cal Oc4d5]} (18. Rxd5 $2 Nxf3 19. Rxd8+ Rxd8 (19... Kxd8 $2 20. Be7+ Kd7 21. Rh4 $19) 20. Be6+ Kb8 $19) 18... Nxb5 {[%emt 0:00:18]} 19. Bxd5 {[%emt 0:00:03]} Rxd5 {[%emt 0:00:26]} (19... Nxa3 20. Bxb7+ Kb8 21. Ba6 $11) 20. Qxd5 {[%emt 0:00:02]} Nxa3 {[%emt 0:00:04]} 21. Rxg7 {[%emt 0:00:21]} Rd8 {[%emt 0:00:24] Against Qd7+} (21... Nxc2 22. Qd7+ Kb8 23. Qxc7+ Ka8 24. Qxb7#) (21... Qe8 $142 22. d4 exd4 (22... Nxc2 $2 23. Qc4 $19)) 22. Qe6+ $2 {[%emt 0:00:31]} (22. Rg8 Rxg8 23. Qxg8+ Kd7 24. Qd5+ Ke7 25. Qxb7) 22... Kb8 {[%emt 0:00:03]} 23. Kg2 {[%emt 0:00:33]} Qe8 {[%emt 0:00:22]} (23... Nxc2 24. Qc4 Ne1+ 25. Kf1 $17) 24. Qf5 {[%emt 0:00:37]} (24. Qxe8 $142 Rxe8 25. c4) 24... Nxc2 {[%emt 0:00:05] ...Ne1+ would now be deadly.} 25. Qxh7 {[%emt 0:00:04]} Rc8 {[%emt 0:00:34] And now ...Ne1+ would win.} 26. h4 {[%emt 0:00:12]} Ne1+ {[%emt 0:00:03]} 27. Kf1 {[%emt 0:00:05]} Nxf3 {[%emt 0:00:04]} 28. h5 {[%emt 0:00:03]} Qe6 {[%emt 0:00:13] ( -> ...Qh3+)} 29. h6 {[%emt 0:00:19]} Qh3+ {[%emt 0:00:13]} 30. Ke2 {[%emt 0:00:03]} Nd4+ {[%emt 0:00:02]} 31. Kd2 {[%emt 0:00:24]} Qf1 {[%emt 0:00:05]} 32. Qe4 {[%emt 0:00:08]} Qxf2+ {[%emt 0:00:03]} 33. Kd1 {[%emt 0:00:03]} Qf1+ {[%emt 0:00:04]} 34. Kd2 {[%emt 0:00:04]} Qf2+ {[%emt 0:00:03]} 35. Kd1 $1 {[%emt 0:00:05]} Qf1+ {[%emt 0:00:06]} (35... f3 $142 36. h7 Qxa2 37. Rg8 Rxg8 38. hxg8=R+ Qxg8 39. Qe3 Qg3 (39... Qb3+ {gets mated.} 40. Kd2 Qc2+ 41. Ke1 Qg2 42. Qf2 Nc2+ 43. Kd2 Qxf2+ 44. Kc3 Nd4 45. Kc4 Qa2+ 46. Kc3 b6 47. Kb4 Qb3#) 40. Kc1 Qg2 41. Qd2 Nb3+ (41... f2 {is a self mate.} 42. Kb2 f1=Q 43. Qxg2 Qxg2+ 44. Ka1 Qg8 45. Kb2 Qb3+ 46. Kc1 Qc2#) 42. Kb2 Qxd2+ (42... Nxd2 43. Kc2 f2 44. Kc3 f1=Q 45. Kb4 Qb1+ 46. Ka4 Qc6+ 47. Ka5 Qbb6#) 43. Kxb3 f2 (43... Qxd3+ 44. Kb4 a6 45. Ka4 c5 46. Ka5 Qb5#) 44. Ka3 f1=Q (44... f1=R {leads to mate.} 45. Kb3 Qxd3+ 46. Kb4 Rf4+ 47. Kc5 Qc4#) 45. Ka4 Qf8 46. Kb5 Qfb4#) 36. Kd2 {[%emt 0:00:03]} Qf2+ $2 {[%emt 0:00:04] Weighted Error Value: White=1.31/Black=0.26 (precise) .  Mistake:       	White=5     	Black=1      Inaccurate:     	White=2     	---        OK:         	White=5     	Black=8      Best:        	White=1     	Black=5} ({Better is} 36... f3 $19 37. Qe1 Qh3) 1/2-1/2

[Event "CCT Julius Baer-D3 2024"]
[Site "Online"]
[Date "2024.09.27"]
[Round "1.5"]
[White "Amin, Bassem"]
[Black "Navara, David"]
[Result "1/2-1/2"]
[ECO "A07"]
[WhiteElo "2636"]
[BlackElo "2681"]
[Annotator "TA"]
[PlyCount "110"]
[EventDate "2024.09.25"]
[EventType "swiss"]
[EventCountry "NET"]
[SourceTitle "playchess.com"]
[Source "ChessBase"]
[SourceQuality "1"]
[TimeControl "600+2"]

{[%evp 18,110,13,13,18,25,62,50,69,20,27,28,58,69,61,70,54,67,52,69,68,67,73,68,52,52,52,54,65,59,68,5,19,4,56,54,60,55,72,55,44,56,72,77,190,197,182,175,312,225,229,231,212,197,211,174,213,143,141,141,145,129,129,133,118,122,125,52,59,59,60,27,27,26,30,-8,-8,-8,-8,-8,-8,-8,-8,-8,-8,-8,-8,-8,-8,-8,-8,-8,-8,-8,-8]} 1. Nf3 {[%emt 0:00:08]} d5 {[%emt 0:03:06]} 2. g3 {[%emt 0:00:07]} g6 {[%emt 0:00:03]} 3. Bg2 {[%emt 0:00:12]} Bg7 {[%emt 0:00:03]} 4. O-O {[%emt 0:00:03]} e5 {[%emt 0:00:04]} 5. d3 {[%emt 0:00:02]} Ne7 {[%emt 0:00:04]} 6. e4 {[%emt 0:00:13]} O-O {[%emt 0:00:17]} 7. exd5 {[%emt 0:00:05]} Nxd5 {[%emt 0:00:02]} 8. Nc3 {[%emt 0:00:04]} Nc6 {[%emt 0:00:20]} 9. Nxd5 {[%emt 0:00:26] A07: Réti Opening: New York and Capablanca Systems.} Qxd5 {[%emt 0:00:02]} 10. Re1 {[%emt 0:00:03]} Qd6 {[%emt 0:00:10]} 11. Nd2 {[%emt 0:00:06]} Be6 $146 {[%emt 0:00:09]} ({Predecessor:} 11... Re8 12. Ne4 Qd8 13. c3 h6 14. b4 Kh7 15. h4 f5 16. Bg5 Qd7 17. Nf6+ Bxf6 18. Bxf6 {0-1 Rapport,R (2763)-Amin,B (2680) Wch Rapid Warsaw 2021 (9)}) 12. Ne4 {[%emt 0:00:08]} Qe7 {[%emt 0:00:05]} 13. Be3 {[%emt 0:00:45]} (13. Bg5 $14 {deserves consideration.} f6 14. Be3) 13... b6 $11 {[%emt 0:00:11]} 14. Nc5 {[%emt 0:01:04]} Bd7 {[%emt 0:00:12]} 15. Nxd7 {[%emt 0:00:11]} Qxd7 {[%emt 0:00:02]} 16. c3 {[%emt 0:00:25]} Rae8 {[%emt 0:00:42]} 17. Qa4 {[%emt 0:00:55]} Re6 $1 {[%emt 0:00:03]} 18. Rad1 {[%emt 0:00:24]} Rd6 {[%emt 0:00:07]} 19. f4 {[%emt 0:00:14]} Rd8 {[%emt 0:00:17]} 20. fxe5 {[%emt 0:00:08]} Nxe5 {[%emt 0:00:03]} 21. Qxd7 {[%emt 0:00:04]} R6xd7 {[%emt 0:00:02]} 22. d4 {[%emt 0:00:05]} Nc4 {[%emt 0:00:03]} 23. Bc1 {[%emt 0:00:05]} c5 {[%emt 0:00:10]} 24. d5 {[%emt 0:00:34]} (24. Bc6 $14 Rd6 25. d5) 24... h6 {[%emt 0:00:34]} 25. h4 {[%emt 0:00:32]} Kf8 {[%emt 0:00:05]} ({Better is} 25... b5 $11) 26. b3 $14 {[%emt 0:00:42]} Nd6 {[%emt 0:00:04]} 27. c4 $1 {[%emt 0:00:02]} Re7 {[%emt 0:00:16]} 28. Bf4 {[%emt 0:00:10]} Rxe1+ {[%emt 0:00:19]} 29. Rxe1 {[%emt 0:00:02]} Bd4+ {[%emt 0:00:11]} 30. Kf1 {[%emt 0:00:04]} b5 {[%emt 0:00:27]} (30... h5 $16) 31. Bxh6+ $18 {[%emt 0:00:07]} Bg7 {[%emt 0:00:03]} 32. Bg5 {[%emt 0:00:10]} f6 {[%emt 0:00:03]} (32... Rd7 $142 33. cxb5 Nxb5) 33. Be3 {[%emt 0:00:06]} bxc4 {[%emt 0:00:19]} 34. Bxc5 {[%emt 0:00:03]} cxb3 {[%emt 0:00:12]} 35. axb3 {[%emt 0:00:02]} Kf7 {[%emt 0:00:03]} 36. Bxa7 {[%emt 0:00:10]} Nf5 {[%emt 0:00:06]} 37. Kf2 {[%emt 0:00:13]} Bf8 {[%emt 0:00:03]} 38. Be4 {[%emt 0:00:36]} Ra8 {[%emt 0:00:03]} 39. Bxf5 {[%emt 0:00:20]} Rxa7 {[%emt 0:00:03]} 40. Be6+ {[%emt 0:00:03]} Kg7 {[%emt 0:00:02]} 41. Rc1 {[%emt 0:00:11]} f5 {[%emt 0:00:07]} 42. Kf3 {[%emt 0:00:16]} (42. Rc6 $16) 42... Rb7 {[%emt 0:00:09]} 43. Rc3 {[%emt 0:00:03]} Bd6 {[%emt 0:00:06]} 44. g4 {[%emt 0:00:06]} fxg4+ {[%emt 0:00:04]} 45. Bxg4 {[%emt 0:00:04]} Rb4 {[%emt 0:00:06]} 46. h5 {[%emt 0:00:05]} Rf4+ {[%emt 0:00:04]} 47. Ke3 {[%emt 0:00:06]} Rxg4 {[%emt 0:00:03]} 48. Rc6 $1 {[%emt 0:00:04]} Bf4+ {[%emt 0:00:06]} 49. Kf3 {[%emt 0:00:03]} gxh5 {[%emt 0:00:03]} 50. Rc4 {[%emt 0:00:10]} Bd6 {[%emt 0:00:03]} 51. Rxg4+ {[%emt 0:00:03]} hxg4+ {[%emt 0:00:02]} 52. Kxg4 {[%emt 0:00:02]} Kf6 {[%emt 0:00:02]} 53. Kf3 {[%emt 0:00:03]} Ke5 {[%emt 0:00:03]} 54. b4 {[%emt 0:00:02]} Bxb4 {[%emt 0:00:03]} 55. d6 {[%emt 0:00:03]} Kxd6 {[%emt 0:00:03]} 1/2-1/2

[Event "CCT Julius Baer-D3 2024"]
[Site "Online"]
[Date "2024.09.27"]
[Round "1.5"]
[White "Theodorou, Nikolas"]
[Black "Svane, Frederik"]
[Result "1-0"]
[ECO "E07"]
[WhiteElo "2619"]
[BlackElo "2640"]
[Annotator "RC"]
[PlyCount "87"]
[EventDate "2024.09.25"]
[EventType "swiss"]
[EventCountry "NET"]
[SourceTitle "playchess.com"]
[Source "ChessBase"]
[SourceQuality "1"]
[TimeControl "600+2"]

1. Nf3 {[%emt 0:00:04]} d5 {[%emt 0:01:45]} 2. c4 {[%emt 0:00:03]} e6 {[%emt 0:00:03]} 3. g3 {[%emt 0:00:03]} Nf6 {[%emt 0:00:03]} 4. Bg2 {[%emt 0:00:02]} Be7 {[%emt 0:00:02]} 5. O-O {[%emt 0:00:04]} O-O {[%emt 0:00:03]} 6. Ne5 {[%emt 0:00:02]} Nbd7 {[%emt 0:00:13]} 7. d4 {[%emt 0:00:03]} c6 {[%emt 0:00:23]} 8. Nc3 {[%emt 0:00:03]} Nxe5 {[%emt 0:00:36]} 9. dxe5 {[%emt 0:00:02]} Nd7 {[%emt 0:00:02]} 10. cxd5 {[%emt 0:00:03]} exd5 {[%emt 0:01:00]} 11. f4 {[%emt 0:00:03]} Nc5 {[%emt 0:00:09]} 12. Be3 {[%emt 0:00:08]} Bf5 {[%emt 0:00:06]} 13. Bf2 {[%emt 0:00:20]} a5 {[%emt 0:00:17]} 14. Rc1 {[%emt 0:00:03]} Rc8 {[%emt 0:01:18]} 15. h3 {[%emt 0:00:17]} h5 {[%emt 0:00:05]} 16. Kh2 {[%emt 0:00:02]} Qd7 {[%emt 0:00:10]} 17. Bxc5 {[%emt 0:00:45]} Bxc5 {[%emt 0:00:04]} 18. e4 {[%emt 0:00:02]} dxe4 {[%emt 0:00:08]} 19. Nxe4 {[%emt 0:00:12]} Be7 {[%emt 0:00:18]} 20. Qxh5 {[%emt 0:00:13]} Rfd8 {[%emt 0:00:23]} 21. Rf2 {[%emt 0:00:46]} Qe6 {[%emt 0:00:09]} 22. Nc5 {[%emt 0:00:24]} Bxc5 {[%emt 0:00:07]} 23. Rxc5 {[%emt 0:00:02]} b6 {[%emt 0:00:18]} 24. Rc3 {[%emt 0:00:16]} c5 {[%emt 0:00:03]} 25. Re3 {[%emt 0:00:09]} Rd3 {[%emt 0:00:20]} 26. Qf3 {[%emt 0:00:20]} Rcd8 {[%emt 0:00:04]} 27. g4 {[%emt 0:00:11]} Rxe3 {[%emt 0:00:13]} 28. Qxe3 {[%emt 0:00:02]} Bb1 {[%emt 0:00:09]} 29. f5 {[%emt 0:00:16]} Qh6 {[%emt 0:00:09]} 30. g5 {[%emt 0:00:12]} Qh4 {[%emt 0:00:03]} 31. e6 {[%emt 0:00:03]} fxe6 {[%emt 0:00:18]} 32. fxe6 {[%emt 0:00:53]} Rd3 {[%emt 0:00:42]} 33. Qe1 {[%emt 0:00:04]} Qg3+ {[%emt 0:00:05]} 34. Kg1 {[%emt 0:00:08]} Bxa2 {[%emt 0:00:28]} 35. e7 {[%emt 0:00:14]} Bf7 {[%emt 0:00:03]} 36. e8=Q+ {[%emt 0:00:13]} Bxe8 {[%emt 0:00:02]} 37. Qxe8+ {[%emt 0:00:03]} Kh7 {[%emt 0:00:02]} 38. Qe4+ {[%emt 0:00:33]} Kg8 {[%emt 0:00:03]} 39. Rf1 {[%emt 0:00:22]} Rd4 {[%emt 0:00:10]} 40. Qe8+ {[%emt 0:00:05]} Kh7 {[%emt 0:00:03]} 41. Qh5+ {[%emt 0:00:06]} Kg8 {[%emt 0:00:03]} 42. g6 {[%emt 0:00:09]} Rd2 {[%emt 0:00:03]} 43. Qh8+ {[%emt 0:00:06]} Kxh8 {[%emt 0:00:03]} 44. Rf8# {[%emt 0:00:02]} 1-0